[Event "TOP 12 FEMININ 2022 - Phase 1"]
[Site "MULHOUSE, France"]
[Date "2022.04.07"]
[Round "1.6"]
[White "SAVINA VAN, Anastasia"]
[Black "CORIAT 608, Caroline"]
[Result "1-0"]
[TimeControl "90 min +30 secondes par coup"]
[WhiteElo "2345"]
[BlackElo "1765"]

1. d4 {[%clk 01:30:49]} {[%emt 00:00:10]} d5 {[%clk 01:30:53]} {[%emt
00:00:07]} 2. c4 {[%clk 01:31:14]} {[%emt 00:00:05]} e6 {[%clk 01:31:13]}
{[%emt 00:00:10]} 3. Nc3 {[%clk 01:31:35]} {[%emt 00:00:09]} a6 {[%clk
01:31:18]} {[%emt 00:00:26]} 4. cxd5 {[%clk 01:26:12]} {[%emt 00:05:53]} exd5
{[%clk 01:31:39]} {[%emt 00:00:08]} 5. Nf3 {[%clk 01:26:25]} {[%emt 00:00:17]}
Nf6 {[%clk 01:31:17]} {[%emt 00:00:53]} 6. Bg5 {[%clk 01:26:03]} {[%emt
00:00:52]} Be6 {[%clk 01:31:33]} {[%emt 00:00:14]} 7. e3 {[%clk 01:26:02]}
{[%emt 00:00:31]} Nbd7 {[%clk 01:31:41]} {[%emt 00:00:22]} 8. Bd3 {[%clk
01:24:55]} {[%emt 00:01:36]} Bd6 {[%clk 01:31:07]} {[%emt 00:01:05]} 9. Qc2
{[%clk 01:23:00]} {[%emt 00:02:25]} c6 {[%clk 01:27:40]} {[%emt 00:03:57]} 10.
O-O {[%clk 01:16:44]} {[%emt 00:06:45]} Qc7 {[%clk 01:27:04]} {[%emt 00:01:06]}
11. e4 {[%clk 01:03:32]} {[%emt 00:13:43]} dxe4 {[%clk 01:19:10]} {[%emt
00:08:24]} 12. Nxe4 {[%clk 01:03:50]} {[%emt 00:00:09]} Nxe4 {[%clk 01:15:33]}
{[%emt 00:04:09]} 13. Bxe4 {[%clk 01:04:15]} {[%emt 00:00:05]} h6 {[%clk
01:15:05]} {[%emt 00:00:58]} 14. Bh4 {[%clk 01:01:17]} {[%emt 00:03:28]} O-O
{[%clk 01:13:52]} {[%emt 00:01:43]} 15. Rad1 {[%clk 00:56:23]} {[%emt
00:05:24]} f5 {[%clk 01:07:11]} {[%emt 00:07:12]} 16. Bd3 {[%clk 00:50:36]}
{[%emt 00:06:17]} g5 {[%clk 01:04:08]} {[%emt 00:03:34]} 17. Rfe1 {[%clk
00:33:56]} {[%emt 00:17:09]} Bd5 {[%clk 00:59:05]} {[%emt 00:05:33]} 18. Bxf5
{[%clk 00:26:21]} {[%emt 00:08:05]} gxh4 {[%clk 00:57:48]} {[%emt 00:01:47]} 19.
Be6+ {[%clk 00:19:50]} {[%emt 00:07:01]} Kh8 {[%clk 00:51:53]} {[%emt
00:06:25]} 20. Nxh4 {[%clk 00:16:44]} {[%emt 00:03:36]} Rf6 {[%clk 00:37:00]}
{[%emt 00:15:23]} 21. Bxd5 {[%clk 00:11:06]} {[%emt 00:06:07]} Bxh2+ {[%clk
00:31:12]} {[%emt 00:06:18]} 22. Kh1 {[%clk 00:08:47]} {[%emt 00:02:50]} cxd5
{[%clk 00:31:12]} {[%emt 00:00:30]} 23. Ng6+ {[%clk 00:08:15]} {[%emt
00:01:02]} Kg7 {[%clk 00:26:45]} {[%emt 00:04:57]} 24. Re7+ {[%clk 00:08:18]}
{[%emt 00:00:27]} Rf7 {[%clk 00:26:37]} {[%emt 00:00:38]} 25. Rxf7+ {[%clk
00:07:16]} {[%emt 00:01:32]} Kxf7 {[%clk 00:27:00]} {[%emt 00:00:07]} 26. Qf5+
{[%clk 00:07:35]} {[%emt 00:00:10]} Kg7 {[%clk 00:23:57]} {[%emt 00:03:33]} 27.
g3 {[%clk 00:06:41]} {[%emt 00:01:25]} Bxg3 {[%clk 00:17:25]} {[%emt 00:07:01]}
28. fxg3 {[%clk 00:06:59]} {[%emt 00:00:12]} Nf6 {[%clk 00:09:52]} {[%emt
00:08:03]} 29. Ne5 {[%clk 00:03:27]} {[%emt 00:04:02]} Ne4 {[%clk 00:09:17]}
{[%emt 00:01:05]} 30. Qg6+ {[%clk 00:03:09]} {[%emt 00:00:49]} Kh8 {[%clk
00:09:18]} {[%emt 00:00:25]} 31. Nf7+ {[%clk 00:03:20]} {[%emt 00:00:22]} 1-0

[Event "TOP 12 FEMININ 2022 - Phase 1"]
[Site "MULHOUSE, France"]
[Date "2022.04.07"]
[Round "1.7"]
[White "BOUTANT 608, Jade"]
[Black "THOMAS  VAN, Anysia"]
[Result "0-1"]
[TimeControl "90 min +30 secondes par coup"]
[WhiteElo "1700"]
[BlackElo "2128"]

1. d4 {[%clk 01:30:56]} {[%emt 00:00:02]} Nf6 {[%clk 01:30:51]} {[%emt
00:00:09]} 2. Bf4 {[%clk 01:31:15]} {[%emt 00:00:12]} b6 {[%clk 01:30:43]}
{[%emt 00:00:39]} 3. e3 {[%clk 01:31:25]} {[%emt 00:00:19]} g6 {[%clk
01:30:53]} {[%emt 00:00:20]} 4. Nf3 {[%clk 01:31:18]} {[%emt 00:00:36]} Bg7
{[%clk 01:31:06]} {[%emt 00:00:18]} 5. Bd3 {[%clk 01:30:56]} {[%emt 00:00:52]}
Bb7 {[%clk 01:31:25]} {[%emt 00:00:11]} 6. Nbd2 {[%clk 01:28:46]} {[%emt
00:02:40]} O-O {[%clk 01:27:25]} {[%emt 00:04:30]} 7. O-O {[%clk 01:28:53]}
{[%emt 00:00:23]} d6 {[%clk 01:25:43]} {[%emt 00:02:13]} 8. e4 {[%clk
01:24:24]} {[%emt 00:04:59]} c5 {[%clk 01:23:48]} {[%emt 00:02:25]} 9. c3
{[%clk 01:22:22]} {[%emt 00:02:31]} e5 {[%clk 01:20:56]} {[%emt 00:03:22]} 10.
Be3 {[%clk 01:15:48]} {[%emt 00:07:04]} exd4 {[%clk 01:09:49]} {[%emt
00:11:37]} 11. cxd4 {[%clk 01:15:27]} {[%emt 00:00:51]} cxd4 {[%clk 01:10:14]}
{[%emt 00:00:06]} 12. Bxd4 {[%clk 01:07:48]} {[%emt 00:08:08]} Nc6 {[%clk
01:09:23]} {[%emt 00:01:22]} 13. Bc3 {[%clk 01:06:43]} {[%emt 00:01:34]} Ne5
{[%clk 00:48:57]} {[%emt 00:20:55]} 14. Nxe5 {[%clk 01:02:06]} {[%emt
00:05:08]} dxe5 {[%clk 00:49:21]} {[%emt 00:00:06]} 15. Qe2 {[%emt 00:01:06]}
Nh5 {[%clk 00:48:49]} {[%emt 00:01:00]} 16. Bc4 {[%clk 00:48:08]} {[%emt
00:13:54]} Nf4 {[%clk 00:45:32]} {[%emt 00:03:47]} 17. Qe3 {[%clk 00:44:38]}
{[%emt 00:03:59]} Rc8 {[%clk 00:38:02]} {[%emt 00:08:01]} 18. Rfd1 {[%clk
00:42:17]} {[%emt 00:02:50]} Qg5 {[%clk 00:34:00]} {[%emt 00:04:33]} 19. Bf1
{[%clk 00:39:32]} {[%emt 00:03:14]} Ba6 {[%clk 00:19:50]} {[%emt 00:14:41]} 20.
Qg3 {[%clk 00:29:53]} {[%emt 00:10:07]} Qxg3 {[%emt 00:01:25]} 21. hxg3 {[%clk
00:30:05]} {[%emt 00:00:05]} Ne2+ {[%clk 00:19:30]} {[%emt 00:00:10]} 22. Bxe2
{[%clk 00:30:04]} {[%emt 00:00:32]} Bxe2 {[%clk 00:19:56]} {[%emt 00:00:04]} 23.
Re1 {[%clk 00:29:58]} {[%emt 00:00:32]} Bg4 {[%clk 00:17:37]} {[%emt 00:02:52]}
24. Nf3 {[%clk 00:26:35]} {[%emt 00:03:53]} f6 {[%clk 00:17:55]} {[%emt
00:00:12]} 25. Rad1 {[%clk 00:20:07]} {[%emt 00:06:57]} Rfd8 {[%clk 00:16:45]}
{[%emt 00:01:41]} 26. Kf1 {[%clk 00:19:14]} {[%emt 00:01:22]} Be6 {[%clk
00:16:34]} {[%emt 00:00:42]} 27. Rxd8+ {[%clk 00:08:10]} {[%emt 00:11:33]} Rxd8
{[%clk 00:16:59]} {[%emt 00:00:05]} 28. b3 {[%clk 00:06:52]} {[%emt 00:01:49]}
Bc8 {[%clk 00:12:22]} {[%emt 00:05:07]} 29. Bb2 {[%clk 00:00:43]} {[%emt
00:06:39]} Ba6+ {[%clk 00:11:05]} {[%emt 00:01:47]} 30. Kg1 {[%clk 00:01:07]}
{[%emt 00:00:06]} Bf8 {[%clk 00:09:32]} {[%emt 00:02:03]} 31. g4 {[%clk
00:00:55]} {[%emt 00:00:42]} h6 {[%clk 00:08:50]} {[%emt 00:01:12]} 32. Bc3
{[%clk 00:01:00]} {[%emt 00:00:24]} Bc8 {[%clk 00:06:44]} {[%emt 00:02:37]} 33.
Nh4 {[%clk 00:00:38]} {[%emt 00:00:51]} Kf7 {[%clk 00:06:31]} {[%emt 00:00:43]}
0-1

[Event "TOP 12 FEMININ 2022 - Phase 1"]
[Site "MULHOUSE, France"]
[Date "2022.04.07"]
[Round "1.8"]
[White "STEIL-ANTONI  VAN, Fiona"]
[Black "PAROT DE SOUSA  608, Sophie"]
[Result "1-0"]
[TimeControl "90 min +30 secondes par coup"]
[WhiteElo "2189"]
[BlackElo "1416"]

1. e4 {[%clk 01:30:58]} {[%emt 00:00:02]} c6 {[%clk 01:30:43]} {[%emt
00:00:17]} 2. d4 {[%clk 01:30:29]} {[%emt 00:00:58]} d5 {[%clk 01:30:59]}
{[%emt 00:00:15]} 3. exd5 {[%clk 01:30:52]} {[%emt 00:00:07]} cxd5 {[%clk
01:30:43]} {[%emt 00:00:47]} 4. Bd3 {[%clk 01:31:15]} {[%emt 00:00:07]} Nf6
{[%clk 01:30:50]} {[%emt 00:00:23]} 5. h3 {[%clk 01:31:35]} {[%emt 00:00:09]}
e6 {[%clk 01:30:41]} {[%emt 00:00:38]} 6. Nf3 {[%clk 01:31:44]} {[%emt
00:00:22]} Bd6 {[%clk 01:29:53]} {[%emt 00:01:18]} 7. c3 {[%clk 01:31:45]}
{[%emt 00:00:29]} O-O {[%clk 01:29:29]} {[%emt 00:00:54]} 8. O-O {[%clk
01:31:53]} {[%emt 00:00:22]} Nbd7 {[%clk 01:28:24]} {[%emt 00:01:35]} 9. Re1
{[%clk 01:31:49]} {[%emt 00:00:34]} h6 {[%clk 01:25:51]} {[%emt 00:03:04]} 10.
Ne5 {[%clk 01:29:54]} {[%emt 00:02:24]} Qc7 {[%clk 01:19:35]} {[%emt 00:06:45]}
11. Bf4 {[%clk 01:29:11]} {[%emt 00:01:14]} a6 {[%clk 01:12:59]} {[%emt
00:07:07]} 12. Nd2 {[%clk 01:26:10]} {[%emt 00:03:30]} b5 {[%clk 01:05:21]}
{[%emt 00:08:09]} 13. Nf1 {[%clk 01:24:18]} {[%emt 00:02:21]} Bb7 {[%clk
00:59:42]} {[%emt 00:06:09]} 14. Rc1 {[%clk 01:21:34]} {[%emt 00:03:13]} Rac8
{[%clk 00:53:38]} {[%emt 00:06:35]} 15. Bb1 {[%clk 01:20:04]} {[%emt 00:02:00]}
g5 {[%clk 00:38:46]} {[%emt 00:15:23]} 16. Bh2 {[%clk 01:18:30]} {[%emt
00:02:03]} Kg7 {[%clk 00:30:04]} {[%emt 00:09:12]} 17. Qd3 {[%clk 01:17:08]}
{[%emt 00:01:51]} Ne4 {[%clk 00:20:54]} {[%emt 00:09:41]} 18. f3 {[%clk
01:15:13]} {[%emt 00:02:25]} Nxe5 {[%clk 00:18:49]} {[%emt 00:02:36]} 19. dxe5
{[%clk 01:13:30]} {[%emt 00:02:12]} Bxe5 {[%clk 00:06:29]} {[%emt 00:12:50]} 20.
Bxe5+ {[%clk 01:12:47]} {[%emt 00:01:12]} Qxe5 {[%clk 00:06:51]} {[%emt
00:00:09]} 21. fxe4 {[%clk 01:13:05]} {[%emt 00:00:12]} dxe4 {[%clk 00:06:48]}
{[%emt 00:00:33]} 22. Qe3 {[%clk 01:11:48]} {[%emt 00:01:46]} f5 {[%clk
00:06:08]} {[%emt 00:01:11]} 23. Rcd1 {[%clk 01:12:01]} {[%emt 00:00:17]} Rfd8
{[%clk 00:05:39]} {[%emt 00:00:59]} 24. Qb6 {[%clk 01:11:23]} {[%emt 00:01:07]}
Rxd1 {[%clk 00:04:08]} {[%emt 00:02:01]} 25. Rxd1 {[%clk 01:11:43]} {[%emt
00:00:10]} Rc7 {[%clk 00:03:10]} {[%emt 00:01:29]} 26. Rd6 {[%clk 01:11:39]}
{[%emt 00:00:33]} Re7 {[%clk 00:02:21]} {[%emt 00:01:19]} 27. Qd8 {[%clk
01:10:23]} {[%emt 00:01:47]} Qc5+ {[%clk 00:02:20]} {[%emt 00:00:32]} 28. Kh2
{[%clk 01:09:48]} {[%emt 00:01:04]} Kf7 {[%clk 00:02:13]} {[%emt 00:00:36]} 29.
Rd7 {[%clk 01:07:55]} {[%emt 00:02:23]} Bc6 {[%clk 00:01:46]} {[%emt 00:00:58]}
30. Rxe7+ {[%clk 01:07:23]} {[%emt 00:01:01]} Qxe7 {[%clk 00:02:11]} {[%emt
00:00:06]} 31. Qh8 {[%clk 01:03:56]} {[%emt 00:03:57]} Qf8 {[%clk 00:01:24]}
{[%emt 00:01:16]} 32. Qe5 {[%clk 01:03:41]} {[%emt 00:00:46]} Qa8 {[%clk
00:01:17]} {[%emt 00:00:36]} 33. Ng3 {[%clk 01:01:43]} {[%emt 00:02:29]} e3
{[%clk 00:01:14]} {[%emt 00:00:34]} 34. Nh5 {[%clk 01:01:31]} {[%emt 00:00:41]}
Bxg2 {[%clk 00:00:47]} {[%emt 00:00:57]} 35. Qg7+ {[%clk 01:01:48]} {[%emt
00:00:13]} Ke8 {[%clk 00:01:09]} {[%emt 00:00:07]} 36. Nf6+ {[%clk 01:02:10]}
{[%emt 00:00:09]} 1-0

[Event "TOP 12 FEMININ 2022 - Phase 1"]
[Site "MULHOUSE, France"]
[Date "2022.04.07"]
[Round "1.9"]
[White "ARMAS LES, Lara-Maria"]
[Black "BATSIASHVILI JUV, Nino"]
[Result "0-1"]
[TimeControl "90 min +30 secondes par coup"]
[WhiteElo "1901"]
[BlackElo "2463"]

1. d4 {[%clk 01:30:57]} {[%emt 00:00:02]} Nf6 {[%clk 01:30:56]} {[%emt
00:00:05]} 2. c4 {[%clk 01:31:21]} {[%emt 00:00:05]} e6 {[%clk 01:31:23]}
{[%emt 00:00:03]} 3. Nc3 {[%clk 01:31:44]} {[%emt 00:00:08]} Bb4 {[%clk
01:31:49]} {[%emt 00:00:04]} 4. Qc2 {[%clk 01:31:24]} {[%emt 00:00:50]} O-O
{[%clk 01:32:12]} {[%emt 00:00:07]} 5. Bg5 {[%clk 01:31:10]} {[%emt 00:00:43]}
h6 {[%clk 01:29:46]} {[%emt 00:02:56]} 6. Bh4 {[%clk 01:29:32]} {[%emt
00:02:09]} c5 {[%clk 01:28:35]} {[%emt 00:01:41]} 7. e3 {[%clk 01:27:58]}
{[%emt 00:02:03]} cxd4 {[%clk 01:28:23]} {[%emt 00:00:42]} 8. exd4 {[%clk
01:28:21]} {[%emt 00:00:08]} d5 {[%clk 01:28:08]} {[%emt 00:00:45]} 9. cxd5
{[%clk 01:14:59]} {[%emt 00:13:51]} exd5 {[%clk 01:25:44]} {[%emt 00:02:54]} 10.
Bd3 {[%clk 01:14:11]} {[%emt 00:01:19]} Nc6 {[%clk 01:12:32]} {[%emt 00:13:42]}
11. Nge2 {[%clk 01:14:00]} {[%emt 00:00:40]} Be6 {[%clk 01:11:49]} {[%emt
00:01:13]} 12. O-O {[%clk 01:13:15]} {[%emt 00:01:15]} Bd6 {[%clk 01:09:43]}
{[%emt 00:02:37]} 13. Bf5 {[%clk 00:59:00]} {[%emt 00:14:45]} Qd7 {[%clk
01:03:25]} {[%emt 00:06:48]} 14. Bxe6 {[%clk 00:51:46]} {[%emt 00:07:44]} fxe6
{[%clk 01:02:47]} {[%emt 00:01:07]} 15. Rae1 {[%clk 00:40:42]} {[%emt
00:11:34]} Nh5 {[%clk 00:56:32]} {[%emt 00:06:45]} 16. Qg6 {[%clk 00:37:23]}
{[%emt 00:03:50]} Rf5 {[%clk 00:42:04]} {[%emt 00:14:58]} 17. g4 {[%clk
00:18:26]} {[%emt 00:19:26]} Nf4 {[%clk 00:42:03]} {[%emt 00:00:30]} 18. Nxf4
{[%clk 00:18:47]} {[%emt 00:00:10]} Rxf4 {[%clk 00:42:29]} {[%emt 00:00:05]} 19.
Qxe6+ {[%clk 00:13:20]} {[%emt 00:05:57]} Qxe6 {[%clk 00:42:37]} {[%emt
00:00:22]} 20. Rxe6 {[%clk 00:13:48]} {[%emt 00:00:02]} Rxg4+ {[%clk 00:42:27]}
{[%emt 00:00:39]} 21. Bg3 {[%clk 00:13:44]} {[%emt 00:00:34]} Rd8 {[%clk
00:41:34]} {[%emt 00:01:23]} 22. Nxd5 {[%clk 00:06:53]} {[%emt 00:07:20]} Bxg3
{[%clk 00:38:04]} {[%emt 00:04:01]} 23. Ne3 {[%clk 00:06:40]} {[%emt 00:00:43]}
Bxf2+ {[%clk 00:37:20]} {[%emt 00:01:14]} 24. Kxf2 {[%clk 00:06:37]} {[%emt
00:00:34]} Rgxd4 {[%clk 00:35:18]} {[%emt 00:02:31]} 25. Rg1 {[%clk 00:04:09]}
{[%emt 00:02:58]} Rf4+ {[%clk 00:34:27]} {[%emt 00:01:21]} 26. Kg3 {[%clk
00:04:01]} {[%emt 00:00:39]} Rf7 {[%clk 00:27:42]} {[%emt 00:07:15]} 27. h4
{[%clk 00:03:20]} {[%emt 00:01:11]} Nd4 {[%clk 00:27:57]} {[%emt 00:00:15]} 28.
Re4 {[%clk 00:00:38]} {[%emt 00:03:11]} Ne2+ {[%clk 00:28:21]} {[%emt
00:00:06]} 29. Kg2 {[%clk 00:00:37]} {[%emt 00:00:32]} Nxg1 {[%clk 00:28:32]}
{[%emt 00:00:19]} 30. Kxg1 {[%clk 00:01:04]} {[%emt 00:00:02]} h5 {[%clk
00:28:44]} {[%emt 00:00:18]} 31. Nc4 {[%clk 00:00:40]} {[%emt 00:00:55]} b5
{[%clk 00:28:47]} {[%emt 00:00:26]} 32. Ne3 {[%clk 00:00:33]} {[%emt 00:00:37]}
Rd2 {[%clk 00:29:04]} {[%emt 00:00:13]} 33. Re5 {[%clk 00:00:42]} {[%emt
00:00:22]} Rxb2 {[%clk 00:29:16]} {[%emt 00:00:17]} 34. Rxh5 {[%clk 00:00:57]}
{[%emt 00:00:15]} Re7 {[%clk 00:29:03]} {[%emt 00:00:43]} 35. Nf1 {[%clk
00:00:37]} {[%emt 00:00:50]} Re1 {[%clk 00:29:08]} {[%emt 00:00:25]} 36. Rf5
{[%clk 00:00:36]} {[%emt 00:00:32]} Rxa2 {[%clk 00:29:14]} {[%emt 00:00:23]} 37.
Rxb5 {[%clk 00:00:39]} {[%emt 00:00:27]} Raa1 {[%clk 00:29:40]} {[%emt
00:00:05]} 38. Rf5 {[%clk 00:00:57]} {[%emt 00:00:11]} a5 {[%clk 00:30:03]}
{[%emt 00:00:08]} 39. Kg2 {[%clk 00:00:41]} {[%emt 00:00:44]} Rxf1 {[%clk
00:30:24]} {[%emt 00:00:10]} 40. Rxf1 {[%clk 00:01:08]} {[%emt 00:00:04]} 0-1

[Event "TOP 12 FEMININ 2022 - Phase 1"]
[Site "MULHOUSE, France"]
[Date "2022.04.07"]
[Round "1.10"]
[White "SALVADOR JUV, Lucie"]
[Black "BISMUTH LES, Lea"]
[Result "1/2-1/2"]
[TimeControl "90 min +30 secondes par coup"]
[WhiteElo "1979"]
[BlackElo "1957"]

1. c4 {[%clk 01:30:57]} {[%emt 00:00:02]} g6 {[%clk 01:30:09]} {[%emt
00:00:52]} 2. Nc3 {[%clk 01:30:44]} {[%emt 00:00:43]} Bg7 {[%clk 01:30:34]}
{[%emt 00:00:05]} 3. g3 {[%clk 01:31:02]} {[%emt 00:00:12]} e5 {[%clk
01:29:05]} {[%emt 00:01:58]} 4. Bg2 {[%clk 01:26:24]} {[%emt 00:05:08]} d6
{[%clk 01:29:11]} {[%emt 00:00:24]} 5. e3 {[%clk 01:25:05]} {[%emt 00:01:49]}
Nf6 {[%clk 01:27:57]} {[%emt 00:01:44]} 6. Nge2 {[%clk 01:23:50]} {[%emt
00:01:44]} O-O {[%clk 01:27:58]} {[%emt 00:00:30]} 7. O-O {[%clk 01:22:58]}
{[%emt 00:01:23]} Re8 {[%clk 01:22:36]} {[%emt 00:05:51]} 8. d4 {[%clk
01:16:01]} {[%emt 00:07:27]} exd4 {[%clk 01:17:45]} {[%emt 00:05:21]} 9. Nxd4
{[%clk 01:16:05]} {[%emt 00:00:26]} Nbd7 {[%clk 01:16:30]} {[%emt 00:01:44]} 10.
Bd2 {[%clk 00:58:18]} {[%emt 00:18:18]} Ne5 {[%clk 00:57:26]} {[%emt 00:19:35]}
11. Qb3 {[%clk 00:52:21]} {[%emt 00:06:25]} Bd7 {[%clk 00:49:18]} {[%emt
00:08:38]} 12. Nd5 {[%clk 00:41:33]} {[%emt 00:11:17]} a5 {[%clk 00:41:01]}
{[%emt 00:08:48]} 13. Bc3 {[%clk 00:27:03]} {[%emt 00:15:01]} Nxd5 {[%clk
00:33:18]} {[%emt 00:08:13]} 14. cxd5 {[%clk 00:26:20]} {[%emt 00:01:12]} Qc8
{[%clk 00:29:56]} {[%emt 00:03:52]} 15. Rfd1 {[%clk 00:19:00]} {[%emt
00:07:50]} a4 {[%clk 00:27:54]} {[%emt 00:02:33]} 16. Qc2 {[%clk 00:19:02]}
{[%emt 00:00:28]} Bh3 {[%clk 00:24:01]} {[%emt 00:04:23]} 17. Nb5 {[%clk
00:16:25]} {[%emt 00:03:06]} Bf5 {[%clk 00:22:28]} {[%emt 00:02:04]} 18. Qc1
{[%clk 00:13:49]} {[%emt 00:03:06]} Re7 {[%clk 00:20:42]} {[%emt 00:02:16]} 19.
Nd4 {[%clk 00:07:02]} {[%emt 00:07:17]} Bg4 {[%clk 00:19:29]} {[%emt 00:01:43]}
20. Rd2 {[%clk 00:06:35]} {[%emt 00:00:57]} h5 {[%clk 00:16:51]} {[%emt
00:03:08]} 21. Qf1 {[%clk 00:05:38]} {[%emt 00:01:27]} a3 {[%clk 00:15:52]}
{[%emt 00:01:29]} 22. h3 {[%clk 00:05:11]} {[%emt 00:00:57]} Bf5 {[%clk
00:07:38]} {[%emt 00:08:43]} 23. e4 {[%clk 00:05:34]} {[%emt 00:00:08]} Bd7
{[%clk 00:07:42]} {[%emt 00:00:26]} 24. f4 {[%clk 00:05:30]} {[%emt 00:00:35]}
c5 {[%clk 00:06:24]} {[%emt 00:01:47]} 25. Nc2 {[%clk 00:03:34]} {[%emt
00:02:26]} axb2 {[%clk 00:06:43]} {[%emt 00:00:11]} 26. Bxb2 {[%clk 00:03:48]}
{[%emt 00:00:16]} Nf3+ {[%clk 00:06:55]} {[%emt 00:00:18]} 27. Qxf3 {[%clk
00:03:05]} {[%emt 00:01:13]} Bxb2 {[%clk 00:07:14]} {[%emt 00:00:10]} 28. Rb1
{[%clk 00:03:26]} {[%emt 00:00:09]} Bg7 {[%clk 00:05:53]} {[%emt 00:01:52]} 29.
Ne3 {[%clk 00:03:04]} {[%emt 00:00:51]} b5 {[%clk 00:04:58]} {[%emt 00:01:25]}
30. Kh2 {[%clk 00:01:35]} {[%emt 00:02:00]} c4 {[%clk 00:03:57]} {[%emt
00:01:31]} 31. f5 {[%clk 00:00:59]} {[%emt 00:01:07]} Ra3 {[%clk 00:03:47]}
{[%emt 00:00:39]} 32. f6 {[%clk 00:00:35]} {[%emt 00:00:54]} Rxe3 {[%clk
00:02:35]} {[%emt 00:01:42]} 33. Qxe3 {[%clk 00:00:56]} {[%emt 00:00:09]} Bxf6
{[%clk 00:03:03]} {[%emt 00:00:02]} 34. Rf1 {[%clk 00:00:45]} {[%emt 00:00:41]}
Be5 {[%clk 00:03:28]} {[%emt 00:00:05]} 35. Qg5 {[%clk 00:00:42]} {[%emt
00:00:33]} Qf8 {[%clk 00:01:26]} {[%emt 00:02:32]} 36. Bf3 {[%clk 00:00:54]}
{[%emt 00:00:19]} Bg7 {[%clk 00:01:39]} {[%emt 00:00:16]} 37. Rdf2 {[%clk
00:00:53]} {[%emt 00:00:31]} Bh6 {[%clk 00:01:12]} {[%emt 00:00:58]} 38. Qf6
{[%clk 00:00:52]} {[%emt 00:00:30]} Bg7 {[%clk 00:01:40]} {[%emt 00:00:03]} 39.
Qxd6 {[%clk 00:01:06]} {[%emt 00:00:15]} Be5 {[%clk 00:01:39]} {[%emt
00:00:31]} 40. Qb4 {[%clk 00:00:49]} {[%emt 00:00:46]} h4 {[%clk 00:02:07]}
{[%emt 00:00:03]} 41. Rg2 {[%clk 00:00:40]} {[%emt 00:00:40]} Bxg3+ {[%clk
00:02:32]} {[%emt 00:00:05]} 42. Rxg3 {[%clk 00:00:43]} {[%emt 00:00:26]} hxg3+
{[%clk 00:03:00]} {[%emt 00:00:02]} 43. Kxg3 {[%clk 00:01:06]} {[%emt
00:00:07]} Qb8+ {[%clk 00:03:08]} {[%emt 00:00:21]} 44. Kg2 {[%clk 00:00:59]}
{[%emt 00:00:38]} Qe5 {[%clk 00:03:30]} {[%emt 00:00:08]} 45. Qc5 {[%clk
00:00:37]} {[%emt 00:00:51]} Qg5+ {[%clk 00:02:05]} {[%emt 00:01:56]} 46. Kh2
{[%clk 00:01:06]} {[%emt 00:00:01]} Qh4 {[%clk 00:02:26]} {[%emt 00:00:09]} 47.
Bg2 {[%clk 00:01:17]} {[%emt 00:00:19]} Re5 {[%clk 00:00:47]} {[%emt 00:02:09]}
48. Qc7 {[%clk 00:00:49]} {[%emt 00:00:57]} Qe7 {[%clk 00:01:15]} {[%emt
00:00:03]} 49. d6 {[%clk 00:00:37]} {[%emt 00:00:42]} Qe6 {[%clk 00:01:35]}
{[%emt 00:00:11]} 50. Re1 {[%clk 00:00:32]} {[%emt 00:00:34]} Rh5 {[%clk
00:01:48]} {[%emt 00:00:17]} 51. Re3 {[%clk 00:00:49]} {[%emt 00:00:12]} Qe5+
{[%clk 00:01:46]} {[%emt 00:00:34]} 52. Kh1 {[%clk 00:00:36]} {[%emt 00:00:41]}
Qe6 {[%clk 00:00:41]} {[%emt 00:01:36]} 53. a3 {[%clk 00:00:38]} {[%emt
00:00:28]} Kg7 {[%clk 00:00:47]} {[%emt 00:00:24]} 54. Kh2 {[%clk 00:00:40]}
{[%emt 00:00:29]} Rh8 {[%clk 00:01:02]} {[%emt 00:00:15]} 55. Qc5 {[%clk
00:00:52]} {[%emt 00:00:16]} Rc8 {[%clk 00:01:08]} {[%emt 00:00:25]} 56. Qd4+
{[%clk 00:01:10]} {[%emt 00:00:12]} Kg8 {[%clk 00:01:36]} {[%emt 00:00:02]} 57.
e5 {[%clk 00:01:13]} {[%emt 00:00:27]} Qf5 {[%clk 00:00:41]} {[%emt 00:01:25]}
58. Rf3 {[%clk 00:00:39]} {[%emt 00:01:04]} Qc2 {[%clk 00:01:09]} {[%emt
00:00:02]} 59. Qd5 {[%clk 00:00:38]} {[%emt 00:00:31]} Rf8 {[%clk 00:00:42]}
{[%emt 00:00:57]} 60. Qb7 {[%clk 00:00:49]} {[%emt 00:00:18]} Bf5 {[%clk
00:00:33]} {[%emt 00:00:40]} 61. Qxb5 {[%clk 00:00:45]} {[%emt 00:00:34]} Be4
{[%clk 00:01:00]} {[%emt 00:00:03]} 62. Rg3 {[%clk 00:01:08]} {[%emt 00:00:07]}
c3 {[%clk 00:01:21]} {[%emt 00:00:10]} 63. Qc4 {[%clk 00:01:21]} {[%emt
00:00:15]} Bf5 {[%clk 00:00:35]} {[%emt 00:01:17]} 64. Qxc3 {[%clk 00:01:22]}
{[%emt 00:00:28]} Qa4 {[%clk 00:00:59]} {[%emt 00:00:06]} 65. Qf3 {[%clk
00:01:23]} {[%emt 00:00:29]} Be6 {[%clk 00:01:03]} {[%emt 00:00:27]} 66. Qf6
{[%clk 00:01:32]} {[%emt 00:00:20]} Qc2 {[%clk 00:00:52]} {[%emt 00:00:42]} 67.
h4 {[%clk 00:01:20]} {[%emt 00:00:42]} Qd1 {[%clk 00:00:33]} {[%emt 00:00:48]}
68. Bf3 {[%clk 00:00:45]} {[%emt 00:01:05]} Qd2+ {[%clk 00:00:44]} {[%emt
00:00:20]} 69. Rg2 {[%clk 00:01:07]} {[%emt 00:00:07]} Qd3 {[%clk 00:00:41]}
{[%emt 00:00:33]} 70. h5 {[%clk 00:01:11]} {[%emt 00:00:26]} Bf5 {[%clk
00:01:05]} {[%emt 00:00:06]} 71. Be2 {[%clk 00:00:36]} {[%emt 00:01:05]} Qh3+
{[%clk 00:00:59]} {[%emt 00:00:36]} 72. Kg1 {[%clk 00:01:04]} {[%emt 00:00:02]}
Qe3+ {[%clk 00:00:49]} {[%emt 00:00:41]} 73. Kh2 {[%clk 00:01:15]} {[%emt
00:00:16]} Qh3+ {[%clk 00:01:15]} {[%emt 00:00:07]} 74. Kg1 {[%clk 00:01:41]}
{[%emt 00:00:03]} Qe3+ {[%clk 00:01:40]} {[%emt 00:00:05]} 75. Kh2 {[%clk
00:02:06]} {[%emt 00:00:04]} Qh3+ {[%clk 00:00:55]} {[%emt 00:01:15]} 76. Kg1
{[%emt 00:00:05]} 1/2-1/2